[Event "Titled Tuesday Blitz August 22 Early 2023"]
[White "Piorun, Kacper"]
[Black "Djordjevic, Vuk"]
[WhiteFideId "1130420"]
[BlackFideId "902098"]
[WhiteElo "2844"]
[BlackElo "2687"]
[Result "1/2-1/2"]
[Round "8"]
[TimeControl "180+1"]
[Date "2023.08.22"]
[WhiteClock "0:00:10"]
[BlackClock "0:00:04"]
[Board "32"]

1. Nf3 {[%clk 0:03:00]}  Nf6 {[%clk 0:02:59]} 2. g3 {[%clk 0:03:01]}  e6 {[%clk 0:02:59]} 3. Bg2 {[%clk 0:03:01]}  d5 {[%clk 0:03:00]} 4. O-O {[%clk 0:03:01]}  Be7 {[%clk 0:03:01]} 5. d3 {[%clk 0:03:02]}  O-O {[%clk 0:03:01]} 6. Nbd2 {[%clk 0:03:01]}  c5 {[%clk 0:03:01]} 7. e4 {[%clk 0:03:01]}  b5 {[%clk 0:03:00]} 8. Re1 {[%clk 0:02:59]}  Nc6 {[%clk 0:03:00]} 9. e5 {[%clk 0:02:58]}  Nd7 {[%clk 0:03:00]} 10. Nf1 {[%clk 0:02:58]}  b4 {[%clk 0:03:00]} 11. h4 {[%clk 0:02:58]}  a5 {[%clk 0:03:00]} 12. Bf4 {[%clk 0:02:57]}  a4 {[%clk 0:02:59]} 13. a3 {[%clk 0:02:57]}  bxa3 {[%clk 0:02:58]} 14. bxa3 {[%clk 0:02:58]}  Ba6 {[%clk 0:02:57]} 15. h5 {[%clk 0:02:53]}  h6 {[%clk 0:02:56]} 16. Ne3 {[%clk 0:02:49]}  Nd4 {[%clk 0:02:52]} 17. Nxd4 {[%clk 0:02:46]}  cxd4 {[%clk 0:02:53]} 18. Ng4 {[%clk 0:02:47]}  Bg5 {[%clk 0:02:52]} 19. Qd2 {[%clk 0:02:40]}  Rc8 {[%clk 0:02:47]} 20. Ra2 {[%clk 0:02:32]}  Rb8 {[%clk 0:02:13]} 21. Nh2 {[%clk 0:02:23]}  Be7 {[%clk 0:01:05]} 22. Nf3 {[%clk 0:02:21]}  Bc5 {[%clk 0:01:01]} 23. g4 {[%clk 0:02:15]}  Rb6 {[%clk 0:00:51]} 24. g5 {[%clk 0:02:11]}  hxg5 {[%clk 0:00:44]} 25. Bxg5 {[%clk 0:02:10]}  f6 {[%clk 0:00:42]} 26. Bh4 {[%clk 0:02:11]}  Qe8 {[%clk 0:00:39]} 27. h6 {[%clk 0:02:11]}  fxe5 {[%clk 0:00:09]} 28. hxg7 {[%clk 0:02:05]}  Rf7 {[%clk 0:00:09]} 29. Raa1 {[%clk 0:01:43]}  Rxg7 {[%clk 0:00:09]} 30. Nxe5 {[%clk 0:01:42]}  Nxe5 {[%clk 0:00:08]} 31. Rxe5 {[%clk 0:01:42]}  Bd6 {[%clk 0:00:09]} 32. Rg5 {[%clk 0:01:42]}  Rb7 {[%clk 0:00:09]} 33. Bg3 {[%clk 0:00:59]}  Rxg5 {[%clk 0:00:07]} 34. Qxg5+ {[%clk 0:00:59]}  Rg7 {[%clk 0:00:07]} 35. Qh4 {[%clk 0:01:00]}  Bxg3 {[%clk 0:00:05]} 36. fxg3 {[%clk 0:01:01]}  Bb7 {[%clk 0:00:04]} 37. Rb1 {[%clk 0:00:50]}  Bc6 {[%clk 0:00:02]} 38. Qxd4 {[%clk 0:00:49]}  e5 {[%clk 0:00:02]} 39. Qf2 {[%clk 0:00:46]}  d4 {[%clk 0:00:02]} 40. Bxc6 {[%clk 0:00:44]}  Qxc6 {[%clk 0:00:03]} 41. Rb8+ {[%clk 0:00:45]}  Kh7 {[%clk 0:00:04]} 42. Qh2+ {[%clk 0:00:44]}  Kg6 {[%clk 0:00:04]} 43. Rh8 {[%clk 0:00:43]}  Qf3 {[%clk 0:00:04]} 44. Qg2 {[%clk 0:00:29]}  Qxg2+ {[%clk 0:00:04]} 45. Kxg2 {[%clk 0:00:29]}  Rc7 {[%clk 0:00:05]} 46. Ra8 {[%clk 0:00:28]}  Rxc2+ {[%clk 0:00:05]} 47. Kf3 {[%clk 0:00:28]}  Kf5 {[%clk 0:00:02]} 48. g4+ {[%clk 0:00:23]}  Ke6 {[%clk 0:00:02]} 49. Rxa4 {[%clk 0:00:18]}  Rd2 {[%clk 0:00:03]} 50. Ra6+ {[%clk 0:00:18]}  Kd5 {[%clk 0:00:03]} 51. Ra5+ {[%clk 0:00:18]}  Ke6 {[%clk 0:00:03]} 52. Ra6+ {[%clk 0:00:16]}  Kd5 {[%clk 0:00:03]} 53. Ra5+ {[%clk 0:00:17]}  Ke6 {[%clk 0:00:04]} 54. Ra6+ {[%clk 0:00:10]} 1/2-1/2


[Site "https://www.chess.com"]

[Event "Titled Tuesday Blitz August 22 Early 2023"]
[White "Bacrot, Etienne"]
[Black "Zhu, Jiner"]
[WhiteFideId "605506"]
[BlackFideId "8608059"]
[WhiteElo "2842"]
[BlackElo "2664"]
[Result "1-0"]
[Round "8"]
[TimeControl "180+1"]
[Date "2023.08.22"]
[WhiteClock "0:00:07"]
[BlackClock "0:00:03"]
[Board "33"]

1. e4 {[%clk 0:03:00]}  c5 {[%clk 0:03:00]} 2. Nf3 {[%clk 0:03:01]}  Nc6 {[%clk 0:03:00]} 3. Bb5 {[%clk 0:03:00]}  g6 {[%clk 0:03:00]} 4. O-O {[%clk 0:02:59]}  Bg7 {[%clk 0:02:59]} 5. Re1 {[%clk 0:02:58]}  e5 {[%clk 0:02:59]} 6. b4 {[%clk 0:02:58]}  cxb4 {[%clk 0:02:55]} 7. a3 {[%clk 0:02:58]}  b3 {[%clk 0:02:55]} 8. cxb3 {[%clk 0:02:58]}  Nge7 {[%clk 0:02:55]} 9. Bb2 {[%clk 0:02:57]}  O-O {[%clk 0:02:53]} 10. Nc3 {[%clk 0:02:56]}  d6 {[%clk 0:02:52]} 11. Rc1 {[%clk 0:02:55]}  Bg4 {[%clk 0:02:47]} 12. h3 {[%clk 0:02:44]}  Bxf3 {[%clk 0:02:46]} 13. Qxf3 {[%clk 0:02:45]}  Nd4 {[%clk 0:02:46]} 14. Qd3 {[%clk 0:02:42]}  Nxb3 {[%clk 0:02:40]} 15. Rb1 {[%clk 0:02:42]}  Nc5 {[%clk 0:02:29]} 16. Qe2 {[%clk 0:02:41]}  a6 {[%clk 0:02:28]} 17. Bc4 {[%clk 0:02:41]}  b5 {[%clk 0:02:27]} 18. Ba2 {[%clk 0:02:41]}  Nc6 {[%clk 0:02:26]} 19. Nd5 {[%clk 0:02:38]}  Rc8 {[%clk 0:02:23]} 20. Rbc1 {[%clk 0:02:34]}  Ne6 {[%clk 0:02:14]} 21. Qd3 {[%clk 0:02:20]}  h5 {[%clk 0:01:53]} 22. Rc2 {[%clk 0:02:15]}  Ne7 {[%clk 0:01:35]} 23. Rxc8 {[%clk 0:01:54]}  Nxc8 {[%clk 0:01:36]} 24. Rc1 {[%clk 0:01:50]}  Nc5 {[%clk 0:01:26]} 25. Qf3 {[%clk 0:01:39]}  Nb6 {[%clk 0:01:23]} 26. Ne3 {[%clk 0:01:25]}  a5 {[%clk 0:01:15]} 27. Bc3 {[%clk 0:01:16]}  Nba4 {[%clk 0:01:07]} 28. Ba1 {[%clk 0:01:14]}  b4 {[%clk 0:01:05]} 29. axb4 {[%clk 0:01:11]}  axb4 {[%clk 0:01:06]} 30. Rb1 {[%clk 0:01:10]}  b3 {[%clk 0:00:34]} 31. Bxb3 {[%clk 0:01:10]}  Nxb3 {[%clk 0:00:35]} 32. Rxb3 {[%clk 0:01:10]}  Nc5 {[%clk 0:00:36]} 33. Rb1 {[%clk 0:01:06]}  Qh4 {[%clk 0:00:30]} 34. Rb4 {[%clk 0:01:01]}  Ra8 {[%clk 0:00:29]} 35. Bc3 {[%clk 0:01:00]}  Qf6 {[%clk 0:00:23]} 36. Qe2 {[%clk 0:00:43]}  Qg5 {[%clk 0:00:18]} 37. Nd5 {[%clk 0:00:39]}  Ne6 {[%clk 0:00:17]} 38. Rb6 {[%clk 0:00:34]}  Bf8 {[%clk 0:00:11]} 39. Qf3 {[%clk 0:00:31]}  Nf4 {[%clk 0:00:07]} 40. Nxf4 {[%clk 0:00:30]}  Qxf4 {[%clk 0:00:08]} 41. Qxf4 {[%clk 0:00:30]}  exf4 {[%clk 0:00:09]} 42. Kf1 {[%clk 0:00:29]}  Rd8 {[%clk 0:00:08]} 43. Rb5 {[%clk 0:00:28]}  Bg7 {[%clk 0:00:08]} 44. Bxg7 {[%clk 0:00:26]}  Kxg7 {[%clk 0:00:09]} 45. Ke2 {[%clk 0:00:26]}  f6 {[%clk 0:00:06]} 46. h4 {[%clk 0:00:26]}  Rc8 {[%clk 0:00:04]} 47. Rd5 {[%clk 0:00:24]}  Rc6 {[%clk 0:00:04]} 48. Kf3 {[%clk 0:00:25]}  Kf7 {[%clk 0:00:04]} 49. Kxf4 {[%clk 0:00:25]}  Ke6 {[%clk 0:00:05]} 50. Ra5 {[%clk 0:00:22]}  Rc2 {[%clk 0:00:05]} 51. Ke3 {[%clk 0:00:22]}  Rc1 {[%clk 0:00:05]} 52. g3 {[%clk 0:00:21]}  Re1+ {[%clk 0:00:05]} 53. Kf3 {[%clk 0:00:22]}  Rd1 {[%clk 0:00:06]} 54. Ke2 {[%clk 0:00:22]}  Rc1 {[%clk 0:00:06]} 55. Ra7 {[%clk 0:00:22]}  f5 {[%clk 0:00:05]} 56. exf5+ {[%clk 0:00:16]}  Kxf5 {[%clk 0:00:06]} 57. Re7 {[%clk 0:00:15]}  Kf6 {[%clk 0:00:06]} 58. Re3 {[%clk 0:00:15]}  Rc4 {[%clk 0:00:06]} 59. Kd3 {[%clk 0:00:14]}  Ra4 {[%clk 0:00:06]} 60. Re4 {[%clk 0:00:14]}  Ra1 {[%clk 0:00:06]} 61. Kd4 {[%clk 0:00:15]}  Rf1 {[%clk 0:00:06]} 62. Re2 {[%clk 0:00:12]}  Ra1 {[%clk 0:00:02]} 63. Kd5 {[%clk 0:00:12]}  Ra6 {[%clk 0:00:03]} 64. Re6+ {[%clk 0:00:12]}  Kf5 {[%clk 0:00:03]} 65. Rxd6 {[%clk 0:00:12]}  Ra2 {[%clk 0:00:03]} 66. Kc6 {[%clk 0:00:11]}  Rc2+ {[%clk 0:00:03]} 67. Kd7 {[%clk 0:00:10]}  Ke4 {[%clk 0:00:02]} 68. Ke7 {[%clk 0:00:08]}  Kf5 {[%clk 0:00:02]} 69. Rd4 {[%clk 0:00:07]}  Rc7+ {[%clk 0:00:02]} 70. Kd6 {[%clk 0:00:06]}  Rc2 {[%clk 0:00:03]} 71. Kd5 {[%clk 0:00:06]}  g5 {[%clk 0:00:03]} 72. hxg5 {[%clk 0:00:06]}  Kxg5 {[%clk 0:00:04]} 73. Ke4 {[%clk 0:00:07]}  h4 {[%clk 0:00:03]} 74. gxh4+ {[%clk 0:00:07]}  Kxh4 {[%clk 0:00:04]} 75. Ke5+ {[%clk 0:00:06]}  Kg5 {[%clk 0:00:04]} 76. f4+ {[%clk 0:00:07]}  Kg6 {[%clk 0:00:05]} 77. f5+ {[%clk 0:00:07]}  Kf7 {[%clk 0:00:06]} 78. Rd7+ {[%clk 0:00:07]}  Ke8 {[%clk 0:00:06]} 79. Rd5 {[%clk 0:00:08]}  Ke7 {[%clk 0:00:06]} 80. f6+ {[%clk 0:00:08]}  Ke8 {[%clk 0:00:06]} 81. Ke6 {[%clk 0:00:08]}  Rc6+ {[%clk 0:00:06]} 82. Rd6 {[%clk 0:00:08]}  Rc7 {[%clk 0:00:06]} 83. d4 {[%clk 0:00:07]}  Re7+ {[%clk 0:00:06]} 84. Kf5 {[%clk 0:00:07]}  Re1 {[%clk 0:00:03]} 85. Re6+ {[%clk 0:00:07]} 1-0


[Site "https://www.chess.com"]

[Event "Titled Tuesday Blitz August 22 Early 2023"]
[White "Kosakowski, Jakub"]
[Black "Gontcharov, Vladislav"]
[WhiteFideId "1185080"]
[BlackFideId "4123492"]
[WhiteElo "2808"]
[BlackElo "2570"]
[Result "1-0"]
[Round "8"]
[TimeControl "180+1"]
[Date "2023.08.22"]
[WhiteClock "0:01:56"]
[BlackClock "0:00:00"]
[Board "37"]

1. d4 {[%clk 0:02:59]}  Nf6 {[%clk 0:02:59]} 2. Nf3 {[%clk 0:02:58]}  e6 {[%clk 0:02:58]} 3. e3 {[%clk 0:02:58]}  c5 {[%clk 0:02:57]} 4. Bd3 {[%clk 0:02:58]}  b6 {[%clk 0:02:52]} 5. c4 {[%clk 0:02:58]}  Bb7 {[%clk 0:02:44]} 6. Nc3 {[%clk 0:02:58]}  d5 {[%clk 0:02:28]} 7. cxd5 {[%clk 0:02:56]}  cxd4 {[%clk 0:02:20]} 8. Bb5+ {[%clk 0:02:51]}  Nbd7 {[%clk 0:01:49]} 9. dxe6 {[%clk 0:02:49]}  fxe6 {[%clk 0:01:49]} 10. Nxd4 {[%clk 0:02:48]}  Qe7 {[%clk 0:01:47]} 11. O-O {[%clk 0:02:43]}  a6 {[%clk 0:01:45]} 12. Bc4 {[%clk 0:02:40]}  e5 {[%clk 0:01:26]} 13. Nf5 {[%clk 0:02:24]}  Qc5 {[%clk 0:01:25]} 14. Bb3 {[%clk 0:02:18]}  O-O-O {[%clk 0:01:21]} 15. e4 {[%clk 0:02:18]}  g6 {[%clk 0:01:08]} 16. Be3 {[%clk 0:02:16]}  Qc7 {[%clk 0:01:08]} 17. Ng3 {[%clk 0:02:15]}  Kb8 {[%clk 0:01:06]} 18. Qe2 {[%clk 0:02:13]}  Nc5 {[%clk 0:01:01]} 19. Nd5 {[%clk 0:01:59]}  Nxd5 {[%clk 0:00:58]} 20. Bxd5 {[%clk 0:02:00]}  Bxd5 {[%clk 0:00:54]} 21. exd5 {[%clk 0:02:00]}  Rxd5 {[%clk 0:00:28]} 22. Rfd1 {[%clk 0:01:58]}  Rxd1+ {[%clk 0:00:26]} 23. Rxd1 {[%clk 0:01:59]}  Bg7 {[%clk 0:00:21]} 24. b4 {[%clk 0:01:59]}  Nd7 {[%clk 0:00:17]} 25. Qxa6 {[%clk 0:01:59]}  Rd8 {[%clk 0:00:11]} 26. h3 {[%clk 0:01:57]}  Qc8 {[%clk 0:00:00]} 27. Qb5 {[%clk 0:01:56]} 1-0


[Site "https://www.chess.com"]

[Event "Titled Tuesday Blitz August 22 Early 2023"]
[White "Gorovets, Andrey"]
[Black "Koutlas, Nikolaos"]
[WhiteFideId "13504037"]
[BlackFideId "25827138"]
[WhiteElo "2797"]
[BlackElo "2535"]
[Result "1-0"]
[Round "8"]
[TimeControl "180+1"]
[Date "2023.08.22"]
[WhiteClock "0:01:33"]
[BlackClock "0:01:36"]
[Board "39"]

1. d4 {[%clk 0:03:00]}  d5 {[%clk 0:02:59]} 2. c4 {[%clk 0:03:01]}  e6 {[%clk 0:02:59]} 3. Nf3 {[%clk 0:03:01]}  Nf6 {[%clk 0:02:58]} 4. Nc3 {[%clk 0:03:01]}  c6 {[%clk 0:02:58]} 5. g3 {[%clk 0:03:01]}  dxc4 {[%clk 0:02:57]} 6. Bg2 {[%clk 0:03:01]}  b5 {[%clk 0:02:57]} 7. Ne5 {[%clk 0:03:01]}  Nd5 {[%clk 0:02:56]} 8. O-O {[%clk 0:02:58]}  Bb7 {[%clk 0:02:53]} 9. a4 {[%clk 0:02:53]}  a6 {[%clk 0:02:53]} 10. e4 {[%clk 0:02:44]}  Nxc3 {[%clk 0:02:41]} 11. bxc3 {[%clk 0:02:45]}  Be7 {[%clk 0:02:41]} 12. f4 {[%clk 0:02:13]}  O-O {[%clk 0:02:36]} 13. f5 {[%clk 0:02:09]}  Nd7 {[%clk 0:02:31]} 14. Ng4 {[%clk 0:02:00]}  exf5 {[%clk 0:02:29]} 15. Rxf5 {[%clk 0:02:00]}  c5 {[%clk 0:02:18]} 16. d5 {[%clk 0:01:49]}  Nb6 {[%clk 0:02:04]} 17. Nh6+ {[%clk 0:01:43]}  gxh6 {[%clk 0:02:00]} 18. Bxh6 {[%clk 0:01:44]}  Kh8 {[%clk 0:01:57]} 19. Qh5 {[%clk 0:01:40]}  Bf6 {[%clk 0:01:49]} 20. Bxf8 {[%clk 0:01:33]}  Qxf8 {[%clk 0:01:36]} 21. Rxf6 {[%clk 0:01:33]} 1-0


[Site "https://www.chess.com"]

[Event "Titled Tuesday Blitz August 22 Early 2023"]
[White "Krzyzanowski, Marcin"]
[Black "Maus7"]
[WhiteFideId "1132199"]
[WhiteElo "2791"]
[BlackElo "2527"]
[Result "0-1"]
[Round "8"]
[TimeControl "180+1"]
[Date "2023.08.22"]
[WhiteClock "0:00:00"]
[BlackClock "0:00:02"]
[Board "40"]

1. e4 {[%clk 0:03:00]}  Nc6 {[%clk 0:03:00]} 2. Nf3 {[%clk 0:02:59]}  e5 {[%clk 0:03:01]} 3. Bb5 {[%clk 0:02:58]}  a6 {[%clk 0:03:01]} 4. Ba4 {[%clk 0:02:58]}  Nf6 {[%clk 0:03:01]} 5. Nc3 {[%clk 0:02:58]}  d6 {[%clk 0:02:32]} 6. Bxc6+ {[%clk 0:02:53]}  bxc6 {[%clk 0:02:32]} 7. d4 {[%clk 0:02:54]}  exd4 {[%clk 0:02:33]} 8. Qxd4 {[%clk 0:02:53]}  c5 {[%clk 0:02:31]} 9. Qd3 {[%clk 0:02:52]}  Be7 {[%clk 0:02:26]} 10. O-O {[%clk 0:02:49]}  O-O {[%clk 0:02:00]} 11. Bf4 {[%clk 0:02:32]}  Be6 {[%clk 0:01:38]} 12. Rad1 {[%clk 0:02:29]}  Qb8 {[%clk 0:01:19]} 13. b3 {[%clk 0:02:25]}  Rd8 {[%clk 0:01:18]} 14. Rfe1 {[%clk 0:02:24]}  Qb7 {[%clk 0:01:13]} 15. h3 {[%clk 0:02:18]}  h6 {[%clk 0:01:13]} 16. Bh2 {[%clk 0:02:14]}  c6 {[%clk 0:00:59]} 17. Nh4 {[%clk 0:01:40]}  d5 {[%clk 0:00:58]} 18. e5 {[%clk 0:01:16]}  d4 {[%clk 0:00:40]} 19. Na4 {[%clk 0:00:49]}  Nd5 {[%clk 0:00:39]} 20. Nf5 {[%clk 0:00:49]}  Bf8 {[%clk 0:00:36]} 21. Nd6 {[%clk 0:00:48]}  Qb4 {[%clk 0:00:32]} 22. Bg3 {[%clk 0:00:35]}  Nc7 {[%clk 0:00:19]} 23. f4 {[%clk 0:00:32]}  Nb5 {[%clk 0:00:19]} 24. f5 {[%clk 0:00:29]}  Bd5 {[%clk 0:00:19]} 25. Nc4 {[%clk 0:00:12]}  Bxc4 {[%clk 0:00:20]} 26. Qxc4 {[%clk 0:00:13]}  Qxc4 {[%clk 0:00:20]} 27. bxc4 {[%clk 0:00:14]}  Na3 {[%clk 0:00:21]} 28. e6 {[%clk 0:00:14]}  Re8 {[%clk 0:00:16]} 29. Nb6 {[%clk 0:00:12]}  Ra7 {[%clk 0:00:12]} 30. Re2 {[%clk 0:00:09]}  fxe6 {[%clk 0:00:12]} 31. fxe6 {[%clk 0:00:09]}  Rb7 {[%clk 0:00:12]} 32. Na4 {[%clk 0:00:07]}  Nxc4 {[%clk 0:00:11]} 33. Bf4 {[%clk 0:00:08]}  Rb4 {[%clk 0:00:04]} 34. c3 {[%clk 0:00:02]}  Rxa4 {[%clk 0:00:03]} 35. cxd4 {[%clk 0:00:03]}  cxd4 {[%clk 0:00:04]} 36. Kh2 {[%clk 0:00:02]}  Nb6 {[%clk 0:00:03]} 37. Rc1 {[%clk 0:00:02]}  Nd5 {[%clk 0:00:03]} 38. Bg3 {[%clk 0:00:02]}  c5 {[%clk 0:00:03]} 39. Rf1 {[%clk 0:00:02]}  Be7 {[%clk 0:00:02]} 40. Rf7 {[%clk 0:00:02]}  Nf6 {[%clk 0:00:02]} 41. Rb2 {[%clk 0:00:01]}  d3 {[%clk 0:00:02]} 42. Rb7 {[%clk 0:00:00]}  d2 {[%clk 0:00:02]} 0-1


[Site "https://www.chess.com"]

[Event "Titled Tuesday Blitz August 22 Early 2023"]
[White "Lei, Tingjie"]
[Black "Young_Catalan_Player09"]
[WhiteFideId "8605114"]
[WhiteElo "2772"]
[BlackElo "2422"]
[Result "1-0"]
[Round "8"]
[TimeControl "180+1"]
[Date "2023.08.22"]
[WhiteClock "0:00:47"]
[BlackClock "0:01:25"]
[Board "41"]

1. d4 {[%clk 0:03:00]}  d5 {[%clk 0:02:49]} 2. c4 {[%clk 0:02:59]}  c6 {[%clk 0:02:48]} 3. cxd5 {[%clk 0:02:58]}  cxd5 {[%clk 0:02:45]} 4. Bf4 {[%clk 0:02:59]}  Nf6 {[%clk 0:02:45]} 5. Nc3 {[%clk 0:02:57]}  Nc6 {[%clk 0:02:46]} 6. e3 {[%clk 0:02:57]}  a6 {[%clk 0:02:45]} 7. Bd3 {[%clk 0:02:54]}  Bg4 {[%clk 0:02:43]} 8. Nge2 {[%clk 0:02:54]}  e6 {[%clk 0:02:40]} 9. O-O {[%clk 0:02:53]}  Bd6 {[%clk 0:02:40]} 10. f3 {[%clk 0:02:53]}  Bh5 {[%clk 0:02:36]} 11. Rc1 {[%clk 0:02:53]}  O-O {[%clk 0:02:35]} 12. Qd2 {[%clk 0:02:50]}  Bg6 {[%clk 0:02:34]} 13. Bxg6 {[%clk 0:02:48]}  hxg6 {[%clk 0:02:35]} 14. Rfd1 {[%clk 0:02:47]}  Rc8 {[%clk 0:02:34]} 15. Na4 {[%clk 0:02:42]}  Bxf4 {[%clk 0:02:24]} 16. Nxf4 {[%clk 0:02:42]}  Qd6 {[%clk 0:02:25]} 17. Nc5 {[%clk 0:02:35]}  Rc7 {[%clk 0:02:17]} 18. b4 {[%clk 0:02:30]}  g5 {[%clk 0:02:14]} 19. Nfd3 {[%clk 0:02:28]}  g4 {[%clk 0:02:15]} 20. f4 {[%clk 0:02:18]}  Rfc8 {[%clk 0:02:06]} 21. a4 {[%clk 0:01:28]}  Ne7 {[%clk 0:01:53]} 22. a5 {[%clk 0:01:21]}  Nf5 {[%clk 0:01:51]} 23. Nxb7 {[%clk 0:01:09]}  Qe7 {[%clk 0:01:47]} 24. Nbc5 {[%clk 0:01:07]}  Nd6 {[%clk 0:01:39]} 25. Nxa6 {[%clk 0:00:59]}  Nde4 {[%clk 0:01:38]} 26. Qe1 {[%clk 0:00:55]}  Rc3 {[%clk 0:01:35]} 27. Nac5 {[%clk 0:00:52]}  Rxc1 {[%clk 0:01:32]} 28. Rxc1 {[%clk 0:00:52]}  g3 {[%clk 0:01:31]} 29. Nxe4 {[%clk 0:00:50]}  Rxc1 {[%clk 0:01:29]} 30. Nxf6+ {[%clk 0:00:51]}  Qxf6 {[%clk 0:01:28]} 31. Qxc1 {[%clk 0:00:51]}  gxh2+ {[%clk 0:01:28]} 32. Kh1 {[%clk 0:00:51]}  Qh4 {[%clk 0:01:29]} 33. Qe1 {[%clk 0:00:47]}  Qf2 {[%clk 0:01:25]} 1-0


[Site "https://www.chess.com"]

[Event "Titled Tuesday Blitz August 22 Early 2023"]
[White "LeoLV10"]
[Black "Naroditsky, Daniel"]
[BlackFideId "2026961"]
[WhiteElo "2480"]
[BlackElo "3174"]
[Result "0-1"]
[Round "8"]
[TimeControl "180+1"]
[Date "2023.08.22"]
[WhiteClock "0:00:17"]
[BlackClock "0:02:22"]
[Board "42"]

1. e4 {[%clk 0:03:00]}  c5 {[%clk 0:02:59]} 2. Nf3 {[%clk 0:03:00]}  d6 {[%clk 0:03:00]} 3. d4 {[%clk 0:03:00]}  cxd4 {[%clk 0:03:01]} 4. Nxd4 {[%clk 0:03:01]}  Nf6 {[%clk 0:03:02]} 5. Nc3 {[%clk 0:03:01]}  a6 {[%clk 0:03:03]} 6. Bg5 {[%clk 0:03:02]}  e6 {[%clk 0:03:03]} 7. f4 {[%clk 0:02:54]}  Be7 {[%clk 0:03:03]} 8. Qf3 {[%clk 0:02:51]}  Qc7 {[%clk 0:03:02]} 9. O-O-O {[%clk 0:02:47]}  Nbd7 {[%clk 0:03:02]} 10. g4 {[%clk 0:02:46]}  h6 {[%clk 0:03:02]} 11. Bxf6 {[%clk 0:02:46]}  Bxf6 {[%clk 0:03:03]} 12. h4 {[%clk 0:02:42]}  Nb6 {[%clk 0:03:03]} 13. Be2 {[%clk 0:02:37]}  Bd7 {[%clk 0:03:03]} 14. g5 {[%clk 0:02:36]}  Bxd4 {[%clk 0:03:03]} 15. Rxd4 {[%clk 0:02:35]}  Bc6 {[%clk 0:03:04]} 16. Rhd1 {[%clk 0:02:33]}  O-O-O {[%clk 0:03:04]} 17. g6 {[%clk 0:02:28]}  f5 {[%clk 0:02:53]} 18. Qh3 {[%clk 0:02:21]}  Rhf8 {[%clk 0:02:45]} 19. exf5 {[%clk 0:02:18]}  exf5 {[%clk 0:02:42]} 20. Bd3 {[%clk 0:02:12]}  Kb8 {[%clk 0:02:42]} 21. Bxf5 {[%clk 0:02:07]}  d5 {[%clk 0:02:43]} 22. Kb1 {[%clk 0:02:00]}  Nc4 {[%clk 0:02:37]} 23. Bd3 {[%clk 0:01:30]}  Nxb2 {[%clk 0:02:32]} 24. Kxb2 {[%clk 0:00:59]}  Qb6+ {[%clk 0:02:32]} 25. Bb5 {[%clk 0:01:00]}  axb5 {[%clk 0:02:28]} 26. a3 {[%clk 0:00:58]}  Qc5 {[%clk 0:02:24]} 27. Qe6 {[%clk 0:00:47]}  Rc8 {[%clk 0:02:21]} 28. Qe5+ {[%clk 0:00:41]}  Rc7 {[%clk 0:02:19]} 29. R1d2 {[%clk 0:00:31]}  Re8 {[%clk 0:02:19]} 30. Qf5 {[%clk 0:00:22]}  Qxc3+ {[%clk 0:02:17]} 31. Kxc3 {[%clk 0:00:15]}  Bd7+ {[%clk 0:02:18]} 32. Kb4 {[%clk 0:00:15]}  Bxf5 {[%clk 0:02:18]} 33. Rxd5 {[%clk 0:00:16]}  Re4+ {[%clk 0:02:16]} 34. Kxb5 {[%clk 0:00:16]}  Rxf4 {[%clk 0:02:16]} 35. Rd8+ {[%clk 0:00:15]}  Ka7 {[%clk 0:02:17]} 36. R2d4 {[%clk 0:00:10]}  Rxd4 {[%clk 0:02:15]} 37. Rxd4 {[%clk 0:00:11]}  Bxg6 {[%clk 0:02:15]} 38. c4 {[%clk 0:00:10]}  Be8+ {[%clk 0:02:14]} 39. Kb4 {[%clk 0:00:10]}  Bf7 {[%clk 0:02:14]} 40. Rg4 {[%clk 0:00:10]}  Be6 {[%clk 0:02:13]} 41. Re4 {[%clk 0:00:10]}  Rxc4+ {[%clk 0:02:12]} 42. Rxc4 {[%clk 0:00:11]}  Bxc4 {[%clk 0:02:13]} 43. Kxc4 {[%clk 0:00:12]}  g5 {[%clk 0:02:13]} 44. hxg5 {[%clk 0:00:12]}  hxg5 {[%clk 0:02:14]} 45. Kd5 {[%clk 0:00:13]}  Ka6 {[%clk 0:02:14]} 46. Ke5 {[%clk 0:00:13]}  Ka5 {[%clk 0:02:15]} 47. Kf5 {[%clk 0:00:14]}  Ka4 {[%clk 0:02:16]} 48. Kxg5 {[%clk 0:00:15]}  Kxa3 {[%clk 0:02:17]} 49. Kf4 {[%clk 0:00:15]}  b5 {[%clk 0:02:18]} 50. Ke3 {[%clk 0:00:16]}  b4 {[%clk 0:02:19]} 51. Kd2 {[%clk 0:00:17]}  b3 {[%clk 0:02:19]} 52. Kc1 {[%clk 0:00:17]}  Ka2 {[%clk 0:02:20]} 53. Kd2 {[%clk 0:00:17]}  b2 {[%clk 0:02:21]} 54. Kc3 {[%clk 0:00:17]}  b1=Q {[%clk 0:02:22]} 0-1


[Site "https://www.chess.com"]